bitfinex/quotes_SOLUSD_20250611
["timestamp","ask_amount","ask_price","bid_price","bid_amount"]
[1749649200463,23.04779832,166.41,166.35,23.04779832]
[1749649200649,23.04779832,166.39,166.33,18.64964886]
[1749649200852,23.04779832,166.38,166.36,26.0]
[1749649201036,26.0,166.45,166.34,23.04779832]
[1749649201037,23.04779832,166.39,166.34,23.04779832]
[1749649201241,172.7,166.45,166.37,23.04779832]
[1749649201451,23.04779832,166.44,166.4,23.04779832]
[1749649201629,23.04779832,166.42,166.37,0.42648471]
[1749649201951,23.04779832,166.43,166.39,0.28432314]
[1749649202250,23.04779832,166.44,166.39,0.14216157]
[1749649202438,23.04779832,166.42,166.37,23.04779832]
[1749649202644,23.04779832,166.42,166.38,0.28432314]
[1749649203163,23.04779832,166.42,166.38,23.33212146]
[1749649203527,23.04779832,166.43,166.38,23.33212146]
[1749649203739,23.04779832,166.45,166.4,23.04779832]
[1749649203943,23.04779832,166.44,166.4,0.28432314]
[1749649204253,23.04779832,166.41,166.36,0.28432314]
[1749649204440,18.64964886,166.47,166.3,18.64964886]
[1749649204441,23.04779832,166.39,166.3,18.64964886]
[1749649204625,23.04779832,166.37,166.31,26.0]
[1749649204836,18.64964886,166.43,166.33,23.04779832]
[1749649205029,23.04779832,166.38,166.34,23.04779832]
[1749649205245,23.04779832,166.38,166.34,0.28432314]
[1749649205455,23.04779832,166.38,166.34,0.14216157]
[1749649205677,23.04779832,166.38,166.34,0.28432314]
[1749649205841,23.04779832,166.38,166.34,0.14216157]
[1749649206036,23.04779832,166.38,166.34,0.28432314]
[1749649206329,23.04779832,166.4,166.31,26.0]
[1749649206552,23.04779832,166.38,166.32,26.42648471]
[1749649206756,23.04779832,166.38,166.33,23.04779832]
[1749649206962,146.7,166.43,166.35,23.04779832]
[1749649207141,23.04779832,166.4,166.35,23.04779832]
[1749649207332,23.04779832,166.4,166.36,0.28432314]
[1749649207533,23.04779832,166.4,166.35,23.04779832]
[1749649207843,23.04779832,166.4,166.34,0.14216157]
[1749649209460,23.04779832,166.43,166.39,23.04779832]
[1749649209672,18.64964886,166.48,166.42,23.04779832]
[1749649209673,26.0,166.47,166.42,23.04779832]
[1749649209839,6.4838,166.49,166.37,26.14216157]
[1749649209840,23.04779832,166.46,166.37,26.14216157]
[1749649210038,6.4838,166.49,166.4,23.04779832]
[1749649210857,23.04779832,166.46,166.41,23.04779832]
[1749649211055,23.04779832,166.46,166.42,23.04779832]
[1749649211239,6.4838,166.49,166.42,23.04779832]
[1749649211436,23.04779832,166.46,166.42,23.04779832]
[1749649212040,23.04779832,166.45,166.4,23.04779832]
[1749649212365,23.04779832,166.44,166.39,23.04779832]
[1749649212734,23.04779832,166.43,166.38,23.04779832]
[1749649213335,23.04779832,166.44,166.39,23.04779832]
[1749649213531,23.04779832,166.45,166.4,23.04779832]
[1749649213766,23.04779832,166.47,166.42,23.04779832]
[1749649214358,23.04779832,166.46,166.41,23.04779832]
[1749649214765,146.7,166.48,166.4,23.04779832]
[1749649214972,23.04779832,166.45,166.39,0.42648471]
[1749649215271,23.04779832,166.44,166.38,26.0]
[1749649215438,23.04779832,166.43,166.38,26.0]
[1749649215637,44.64964886,166.45,166.29,4.82923546]
[1749649215855,23.04779832,166.39,166.3,48.28964886]
[1749649216068,23.04779832,166.39,166.34,23.04779832]
[1749649216239,44.64964886,166.45,166.35,23.04779832]
[1749649216439,23.04779832,166.4,166.35,23.04779832]
[1749649216753,23.04779832,166.4,166.33,34.08882314]
[1749649216754,23.04779832,166.38,166.33,26.0]
[1749649217067,23.04779832,166.38,166.33,23.04779832]
[1749649217641,23.04779832,166.34,166.24,7.6676]
[1749649217866,24.91184886,166.37,166.27,26.0]
[1749649218163,6.2622,166.37,166.27,26.0]
[1749649218402,23.04779832,166.35,166.3,23.04779832]
[1749649218682,23.04779832,166.35,166.27,26.0]
[1749649218683,23.04779832,166.35,166.29,23.04779832]
[1749649218907,23.04779832,166.33,166.28,23.04779832]
[1749649219062,23.04779832,166.33,166.27,26.0]
[1749649219261,23.04779832,166.32,166.26,23.04779832]
[1749649219484,23.04779832,166.32,166.27,23.04779832]
[1749649219790,23.04779832,166.32,166.27,49.04779832]
[1749649220158,23.04779832,166.32,166.27,0.28432314]
[1749649220360,23.04779832,166.32,166.27,0.14216157]
[1749649220586,23.04779832,166.32,166.27,23.18995989]
[1749649221083,23.04779832,166.32,166.26,0.14216157]
[1749649221084,23.04779832,166.3,166.25,49.04779832]
[1749649221258,23.04779832,166.27,166.21,18.64964886]
[1749649221458,23.04779832,166.27,166.2,8.1126]
[1749649221679,18.64964886,166.29,166.2,8.1126]
[1749649221892,49.04779832,166.3,166.2,57.16039832]
[1749649222192,26.0,166.3,166.23,23.04779832]
[1749649222401,23.04779832,166.29,166.24,23.04779832]
[1749649222683,26.0,166.32,166.21,18.64964886]
[1749649222684,23.04779832,166.31,166.26,23.04779832]
[1749649222856,23.04779832,166.32,166.25,0.42648471]
[1749649223059,23.04779832,166.33,166.25,0.42648471]
[1749649223258,23.04779832,166.35,166.3,23.04779832]
[1749649223489,6.2622,166.37,166.29,0.14216157]
[1749649223673,23.04779832,166.36,166.3,23.04779832]
[1749649223879,23.04779832,166.36,166.31,23.04779832]
[1749649224264,23.04779832,166.36,166.31,0.28432314]
[1749649224464,23.04779832,166.36,166.31,23.33212146]
[1749649224868,18.64964886,166.4,166.32,23.04779832]
[1749649225086,23.04779832,166.37,166.31,23.33212146]
[1749649225295,23.04779832,166.37,166.32,23.04779832]
[1749649225986,23.04779832,166.37,166.31,0.28432314]
[1749649226205,23.04779832,166.37,166.32,23.04779832]
[1749649226375,23.04779832,166.39,166.33,23.04779832]
[1749649226694,23.04779832,166.39,166.34,23.04779832]
[1749649226986,23.04779832,166.41,166.35,23.04779832]
[1749649227188,26.0,166.43,166.35,23.04779832]
[1749649227368,23.04779832,166.41,166.35,23.04779832]
[1749649227561,23.04779832,166.41,166.35,0.28432314]
[1749649227769,20.29934886,166.46,166.38,23.04779832]
[1749649227770,1.6497,166.46,166.38,23.04779832]
[1749649227964,23.04779832,166.43,166.37,23.04779832]
[1749649228181,1.6497,166.46,166.36,0.42648471]
[1749649228379,23.04779832,166.43,166.37,23.04779832]
[1749649228581,23.04779832,166.4,166.34,23.04779832]
[1749649228780,18.64964886,166.44,166.34,0.28432314]
[1749649228975,23.04779832,166.38,166.33,49.04779832]
[1749649229175,23.04779832,166.41,166.36,23.04779832]
[1749649229497,26.0,166.45,166.37,23.04779832]
[1749649229797,23.04779832,166.42,166.37,23.04779832]
[1749649230493,23.04779832,166.4,166.33,26.0]
[1749649230791,23.04779832,166.4,166.35,23.04779832]
[1749649231379,23.04779832,166.41,166.35,23.04779832]
[1749649231569,23.04779832,166.4,166.34,0.28432314]
[1749649231774,23.04779832,166.4,166.33,26.0]
[1749649231775,23.04779832,166.38,166.33,49.04779832]
[1749649232188,23.04779832,166.39,166.33,49.04779832]
[1749649232394,23.04779832,166.39,166.34,23.04779832]
[1749649232887,18.64964886,166.45,166.35,23.04779832]
[1749649233089,23.04779832,166.39,166.34,23.33212146]
[1749649233293,23.04779832,166.4,166.34,23.33212146]
[1749649234086,23.04779832,166.4,166.35,23.04779832]
[1749649234483,23.04779832,166.4,166.34,23.04779832]
[1749649234680,23.04779832,166.4,166.3,56.56631043]
[1749649234681,23.04779832,166.36,166.3,8.1545]
[1749649234880,18.64964886,166.39,166.29,23.04779832]
[1749649234881,23.04779832,166.34,166.29,23.04779832]
[1749649235188,23.04779832,166.37,166.31,23.04779832]
[1749649235695,23.04779832,166.38,166.32,23.04779832]
[1749649235870,6.3346,166.4,166.32,23.04779832]
[1749649236073,23.04779832,166.38,166.33,23.04779832]
[1749649236279,23.04779832,166.38,166.3,0.28432314]
[1749649236280,18.64964886,166.41,166.32,23.04779832]
[1749649236583,23.04779832,166.37,166.32,23.04779832]
[1749649238295,23.04779832,166.38,166.32,23.04779832]
[1749649238801,23.04779832,166.38,166.33,23.04779832]
[1749649239382,26.0,166.42,166.33,23.04779832]
[1749649239609,23.04779832,166.39,166.32,26.0]
[1749649239787,23.04779832,166.39,166.34,23.04779832]
[1749649239983,23.04779832,166.39,166.32,26.0]
[1749649239984,23.04779832,166.43,166.37,23.04779832]
[1749649240379,146.7,166.44,166.38,23.04779832]
[1749649240684,23.04779832,166.43,166.37,23.04779832]
[1749649240895,146.7,166.44,166.37,23.04779832]
[1749649241089,23.04779832,166.42,166.37,23.04779832]
[1749649241599,146.7,166.44,166.37,23.04779832]
[1749649241798,23.04779832,166.43,166.37,23.04779832]
[1749649241992,23.04779832,166.42,166.37,23.04779832]
[1749649242173,23.04779832,166.42,166.36,23.04779832]
[1749649242375,23.04779832,166.41,166.35,26.28432314]
[1749649242597,23.04779832,166.41,166.35,49.33212146]
[1749649242782,23.04779832,166.4,166.35,26.0]
[1749649243204,23.04779832,166.4,166.32,19.07613357]
[1749649243205,23.04779832,166.38,166.32,23.04779832]
[1749649243509,23.04779832,166.38,166.33,23.04779832]
[1749649244309,172.7,166.44,166.32,26.0]
[1749649244310,23.04779832,166.4,166.35,23.04779832]
[1749649244495,146.7,166.43,166.36,23.04779832]
[1749649244706,169.74779832,166.43,166.37,23.04779832]
[1749649245281,23.04779832,166.42,166.37,23.04779832]
[1749649245704,146.7,166.43,166.38,23.04779832]
[1749649245905,6.2933,166.49,166.34,18.64964886]
[1749649245906,6.2933,166.49,166.42,23.04779832]
[1749649246202,23.04779832,166.45,166.4,49.04779832]
[1749649246407,148.2916,166.5,166.42,23.04779832]
[1749649246709,23.04779832,166.48,166.43,23.04779832]
[1749649247205,146.7,166.5,166.44,23.04779832]
[1749649247405,23.04779832,166.49,166.43,23.04779832]
[1749649247706,146.7,166.5,166.41,0.28432314]
[1749649247707,146.7,166.5,166.44,23.04779832]
[1749649247880,146.7,166.5,166.45,23.04779832]
[1749649248082,23.04779832,166.51,166.41,19.07613357]
[1749649248282,6.0933,166.53,166.46,23.04779832]
[1749649248492,23.04779832,166.51,166.45,23.04779832]
[1749649249383,23.04779832,166.5,166.41,19.07613357]
[1749649249687,23.04779832,166.51,166.45,23.04779832]
[1749649251622,1.80446157,166.55,166.45,23.04779832]
[1749649251623,23.04779832,166.52,166.45,1.81802314]
[1749649251784,23.04779832,166.52,166.47,23.04779832]
[1749649252146,23.04779832,166.49,166.44,26.0]
[1749649252413,23.04779832,166.46,166.4,32.6662]
[1749649252586,23.04779832,166.46,166.4,55.71399832]
[1749649252786,23.04779832,166.46,166.4,32.6662]
[1749649252986,23.04779832,166.45,166.4,55.71399832]
[1749649253195,23.04779832,166.5,166.4,55.71399832]
[1749649253196,23.04779832,166.46,166.4,32.6662]
[1749649253399,23.04779832,166.46,166.41,23.04779832]
[1749649254108,23.04779832,166.47,166.4,32.6662]
[1749649254408,23.04779832,166.47,166.41,23.04779832]
[1749649254610,23.04779832,166.47,166.4,32.6662]
[1749649254818,23.04779832,166.47,166.41,23.04779832]
[1749649255282,23.04779832,166.47,166.42,23.33212146]
[1749649255482,23.04779832,166.48,166.43,23.04779832]
[1749649255686,23.04779832,166.48,166.42,0.28432314]
[1749649255923,23.04779832,166.48,166.42,23.33212146]
[1749649256131,26.0,166.52,166.42,23.33212146]
[1749649256299,23.04779832,166.48,166.43,23.04779832]
[1749649256495,23.04779832,166.48,166.42,0.28432314]
[1749649256814,23.04779832,166.47,166.42,23.33212146]
[1749649257213,26.0,166.52,166.4,55.71399832]
[1749649257214,23.04779832,166.46,166.4,55.71399832]
[1749649257902,32.00549052,166.52,166.41,23.04779832]
[1749649257903,23.04779832,166.47,166.41,23.04779832]
[1749649258396,23.04779832,166.49,166.43,23.04779832]
[1749649258602,23.04779832,166.49,166.44,23.04779832]
[1749649259130,23.04779832,166.49,166.43,23.04779832]
[1749649259327,23.04779832,166.48,166.42,0.28432314]
[1749649259510,23.04779832,166.48,166.42,23.33212146]
[1749649259908,146.7,166.51,166.44,23.04779832]
[1749649260107,23.04779832,166.49,166.44,23.04779832]
[1749649260419,23.04779832,166.48,166.43,49.04779832]
[1749649260618,23.04779832,166.49,166.44,23.04779832]
[1749649260823,23.04779832,166.49,166.43,49.04779832]
[1749649261530,23.04779832,166.5,166.45,23.04779832]
[1749649261833,23.04779832,166.47,166.43,26.0]
[1749649262009,146.7,166.51,166.43,26.0]
[1749649262210,23.04779832,166.49,166.43,49.04779832]
[1749649262431,146.7,166.51,166.43,49.04779832]
[1749649262726,23.04779832,166.49,166.44,23.04779832]
[1749649263112,146.7,166.51,166.44,26.42648471]
[1749649263322,169.74779832,166.51,166.44,26.42648471]
[1749649263911,169.74779832,166.51,166.44,26.28432314]
[1749649263912,23.04779832,166.48,166.44,26.28432314]
[1749649264120,23.04779832,166.47,166.42,23.04779832]
[1749649264314,23.04779832,166.48,166.42,23.04779832]
[1749649264724,23.04779832,166.48,166.41,0.28432314]
[1749649264928,146.7,166.51,166.43,23.04779832]
[1749649265115,146.7,166.51,166.43,26.0]
[1749649265116,23.04779832,166.48,166.43,26.0]
[1749649266337,23.04779832,166.47,166.43,26.0]
[1749649266537,146.7,166.51,166.43,26.0]
[1749649266746,23.04779832,166.48,166.43,49.04779832]
[1749649266915,146.7,166.51,166.46,23.04779832]
[1749649267233,13.83863329,166.53,166.48,13.83863329]
[1749649267429,160.53863329,166.55,166.49,13.83863329]
[1749649268424,13.83863329,166.52,166.47,13.83863329]
[1749649268637,13.83863329,166.52,166.46,15.49003329]
[1749649268842,13.83863329,166.51,166.46,1.6514]
[1749649269042,146.7,166.55,166.48,13.83863329]
[1749649269206,23.06554776,166.53,166.47,23.06554776]
[1749649269638,23.06554776,166.53,166.48,23.06554776]
[1749649269837,23.06554776,166.53,166.47,23.3498709]
[1749649270025,23.06554776,166.53,166.48,23.06554776]
[1749649270421,146.7,166.55,166.47,0.42648471]
[1749649270636,23.06554776,166.53,166.47,23.3498709]
[1749649270842,23.06554776,166.51,166.45,49.06554776]
[1749649271142,18.64964886,166.54,166.45,23.06554776]
[1749649271436,23.06554776,166.53,166.47,23.06554776]
[1749649271731,23.06554776,166.52,166.47,23.3498709]
[1749649271940,146.7,166.55,166.48,23.06554776]
[1749649272239,23.06554776,166.53,166.48,23.06554776]
[1749649272533,23.06554776,166.53,166.48,49.06554776]
[1749649272912,169.76554776,166.55,166.49,23.06554776]
[1749649273128,169.76554776,166.55,166.51,23.06554776]
[1749649273129,146.7,166.55,166.51,23.06554776]
[1749649273333,169.76554776,166.55,166.49,23.3498709]
[1749649273537,23.06554776,166.54,166.48,49.06554776]
[1749649273735,146.7,166.55,166.45,0.14216157]
[1749649273736,23.06554776,166.51,166.45,0.14216157]
[1749649273940,23.06554776,166.5,166.45,0.14216157]
[1749649274241,23.06554776,166.57,166.5,26.0]
[1749649274539,23.06554776,166.56,166.51,23.06554776]
[1749649274747,23.06554776,166.53,166.48,0.14216157]
[1749649274924,23.06554776,166.53,166.47,23.20770933]
[1749649275124,23.06554776,166.54,166.48,23.06554776]
[1749649275311,23.06554776,166.55,166.49,23.06554776]
[1749649275516,23.06554776,166.55,166.5,23.06554776]
[1749649275714,23.06554776,166.62,166.54,23.06554776]
[1749649275936,169.76554776,166.63,166.57,23.06554776]
[1749649276140,23.06554776,166.62,166.56,23.06554776]
[1749649276833,23.06554776,166.61,166.56,23.06554776]
[1749649277026,23.06554776,166.6,166.55,23.06554776]
[1749649277532,23.06554776,166.61,166.55,23.06554776]
[1749649277735,23.06554776,166.61,166.56,23.06554776]
[1749649277924,23.06554776,166.62,166.57,23.06554776]
[1749649278118,23.06554776,166.62,166.54,26.0]
[1749649278319,23.06554776,166.62,166.56,23.06554776]
[1749649278624,146.7,166.63,166.56,23.06554776]
[1749649278856,146.7,166.63,166.54,26.0]
[1749649278857,32.0521,166.65,166.59,23.06554776]
[1749649279149,23.06554776,166.63,166.57,23.06554776]
[1749649279659,23.06554776,166.64,166.59,23.06554776]
[1749649280743,23.06554776,166.62,166.55,0.28432314]
[1749649280946,23.06554776,166.62,166.56,23.06554776]
[1749649281125,23.06554776,166.63,166.57,23.06554776]
[1749649281318,169.76554776,166.64,166.59,23.06554776]
[1749649281521,146.7,166.64,166.59,23.06554776]
[1749649282429,146.7,166.64,166.6,23.06554776]
[1749649282733,146.7,166.64,166.61,23.06554776]
[1749649282914,146.7,166.64,166.6,23.06554776]
[1749649283117,169.76554776,166.64,166.58,23.06554776]
[1749649283318,169.76554776,166.64,166.55,0.28432314]
[1749649283319,23.06554776,166.62,166.57,23.06554776]
[1749649283520,23.06554776,166.6,166.53,26.0]
[1749649283750,23.06554776,166.6,166.55,23.06554776]
[1749649284045,23.06554776,166.57,166.5,6.3017]
[1749649284343,23.06554776,166.57,166.52,23.06554776]
[1749649284527,23.06554776,166.57,166.51,23.06554776]
[1749649284728,146.7,166.59,166.5,6.3017]
[1749649284729,23.06554776,166.56,166.5,6.3017]
[1749649284934,23.06554776,166.54,166.48,23.06554776]
[1749649285238,23.06554776,166.55,166.49,49.06554776]
[1749649285552,146.7,166.59,166.5,23.06554776]
[1749649285729,146.7,166.59,166.54,23.06554776]
[1749649285938,146.7,166.59,166.55,23.06554776]
[1749649286531,146.7,166.59,166.54,23.06554776]
[1749649286840,23.06554776,166.58,166.52,23.06554776]
[1749649287058,23.06554776,166.57,166.51,49.06554776]
[1749649287358,23.06554776,166.57,166.52,23.06554776]
[1749649287954,23.06554776,166.58,166.52,23.06554776]
[1749649288957,146.7,166.59,166.53,23.06554776]
[1749649289161,8.2867,166.61,166.55,23.06554776]
[1749649289162,23.06554776,166.61,166.55,23.06554776]
[1749649289332,23.06554776,166.62,166.56,23.06554776]
[1749649289944,23.06554776,166.61,166.55,23.06554776]
[1749649290143,23.06554776,166.59,166.54,23.06554776]
[1749649290346,23.06554776,166.6,166.54,23.06554776]
[1749649291926,23.06554776,166.61,166.56,23.06554776]
[1749649292555,23.06554776,166.6,166.55,23.06554776]
[1749649293134,23.06554776,166.59,166.54,23.06554776]
[1749649293442,23.06554776,166.6,166.54,23.06554776]
[1749649293646,23.06554776,166.59,166.54,23.06554776]
[1749649293842,23.06554776,166.57,166.51,26.0]
[1749649294064,23.06554776,166.57,166.51,23.06554776]
[1749649294255,23.06554776,166.57,166.48,18.933972]
[1749649294256,23.06554776,166.56,166.5,23.06554776]
[1749649294561,23.06554776,166.59,166.52,0.28432314]
[1749649294776,23.06554776,166.58,166.52,23.06554776]
[1749649294946,23.06554776,166.57,166.51,49.06554776]
[1749649295140,23.06554776,166.56,166.51,49.06554776]
[1749649295652,23.06554776,166.56,166.47,1.70086157]
[1749649295653,23.06554776,166.55,166.48,0.42648471]
[1749649295860,23.06554776,166.52,166.46,29.29314776]
[1749649296052,6.2396,166.56,166.46,29.29314776]
[1749649296261,23.06554776,166.51,166.46,55.29314776]
[1749649296470,23.06554776,166.5,166.45,23.06554776]
[1749649297068,23.06554776,166.51,166.45,23.06554776]
[1749649297457,18.64964886,166.54,166.45,23.06554776]
[1749649297649,146.7,166.55,166.47,23.06554776]
[1749649297843,23.06554776,166.53,166.47,23.06554776]
[1749649298046,23.06554776,166.52,166.47,23.06554776]
[1749649298269,23.06554776,166.52,166.46,23.06554776]
[1749649299551,23.06554776,166.51,166.46,23.06554776]
[1749649300254,23.06554776,166.51,166.45,26.28432314]
[1749649300455,23.06554776,166.51,166.46,23.06554776]
[1749649300768,23.06554776,166.52,166.46,23.06554776]
[1749649300963,23.06554776,166.52,166.45,26.28432314]
[1749649301167,146.7,166.54,166.5,23.06554776]
[1749649301576,146.7,166.54,166.47,0.42648471]
[1749649301577,146.7,166.54,166.49,23.06554776]
[1749649301945,18.64964886,166.59,166.47,0.42648471]
[1749649301946,23.06554776,166.56,166.51,23.06554776]
[1749649302772,146.7,166.58,166.51,23.06554776]
[1749649302978,23.06554776,166.56,166.5,23.06554776]
[1749649303273,23.06554776,166.54,166.48,49.06554776]
[1749649303571,23.06554776,166.56,166.5,23.06554776]
[1749649303875,23.06554776,166.57,166.51,23.06554776]
[1749649304077,23.06554776,166.56,166.5,23.06554776]
[1749649304278,146.7,166.58,166.48,26.0]
[1749649304279,23.06554776,166.54,166.48,26.0]
[1749649304468,23.06554776,166.54,166.48,49.06554776]
[1749649304848,23.06554776,166.51,166.43,1.6149]
[1749649305046,146.7,166.53,166.43,1.6149]
[1749649305047,23.06554776,166.49,166.43,1.6149]
[1749649305261,23.06554776,166.48,166.45,26.0]
[1749649305469,23.06554776,166.48,166.43,24.68044776]
[1749649305881,23.06554776,166.48,166.4,18.933972]
[1749649305882,23.06554776,166.45,166.38,7.5944]
[1749649306175,23.06554776,166.43,166.38,30.65994776]
[1749649306388,23.06554776,166.41,166.33,6.3230953]
[1749649306680,23.06554776,166.37,166.33,1.557]
[1749649307077,23.06554776,166.38,166.33,23.06554776]
[1749649307473,23.06554776,166.39,166.33,23.06554776]
[1749649307653,23.06554776,166.39,166.34,23.06554776]
[1749649307974,18.64964886,166.43,166.34,23.06554776]
[1749649308161,23.06554776,166.4,166.34,23.06554776]
[1749649308360,23.06554776,166.39,166.32,32.0374]
[1749649308571,23.06554776,166.38,166.32,32.0374]
[1749649308751,18.79181043,166.43,166.32,49.06554776]
[1749649308959,23.06554776,166.38,166.33,23.06554776]
[1749649309175,23.06554776,166.4,166.35,23.06554776]
[1749649309656,23.06554776,166.42,166.37,23.06554776]
[1749649309852,23.06554776,166.42,166.35,0.28432314]
[1749649310079,23.06554776,166.41,166.36,23.06554776]
[1749649310378,18.64964886,166.45,166.37,23.06554776]
[1749649310675,23.06554776,166.44,166.39,23.06554776]
[1749649311075,23.06554776,166.45,166.4,23.06554776]
[1749649311282,23.06554776,166.45,166.39,23.06554776]
[1749649311697,23.06554776,166.45,166.4,23.06554776]
[1749649311861,23.06554776,166.45,166.38,26.0]
[1749649312217,23.06554776,166.45,166.4,23.06554776]
[1749649312760,169.76554776,166.46,166.41,23.06554776]
[1749649313681,169.76554776,166.46,166.39,0.28432314]
[1749649313887,23.06554776,166.48,166.42,23.06554776]
[1749649314057,23.06554776,166.49,166.43,23.06554776]
[1749649314456,23.06554776,166.49,166.44,23.06554776]
[1749649314656,23.06554776,166.5,166.45,23.06554776]
[1749649315151,23.06554776,166.48,166.39,19.07613357]
[1749649315366,23.06554776,166.48,166.42,49.06554776]
[1749649315573,23.06554776,166.48,166.43,23.06554776]
[1749649315766,23.06554776,166.49,166.44,23.06554776]
[1749649316078,23.06554776,166.49,166.43,23.06554776]
[1749649316652,23.06554776,166.48,166.43,23.06554776]
[1749649317081,8.4,166.52,166.39,26.14216157]
[1749649317082,23.06554776,166.46,166.39,26.14216157]
[1749649317388,23.06554776,166.46,166.41,23.06554776]
[1749649318881,23.06554776,166.47,166.42,23.06554776]
[1749649319088,23.06554776,166.49,166.44,23.06554776]
[1749649319983,23.06554776,166.45,166.38,24.62484776]
[1749649320158,23.06554776,166.43,166.39,26.0]
[1749649320354,23.06554776,166.44,166.39,26.0]
[1749649320576,23.06554776,166.45,166.39,49.06554776]
[1749649320782,23.06554776,166.45,166.4,23.06554776]
[1749649320968,23.06554776,166.44,166.39,26.0]
[1749649321283,23.06554776,166.44,166.34,0.14216157]
[1749649321284,23.06554776,166.4,166.35,23.06554776]
[1749649321458,23.06554776,166.39,166.34,1.5766]
[1749649321667,23.06554776,166.39,166.34,23.06554776]
[1749649321859,0.42648471,166.45,166.36,23.06554776]
[1749649322083,23.06554776,166.41,166.36,23.06554776]
[1749649322266,23.06554776,166.41,166.32,32.5634]
[1749649322267,23.06554776,166.41,166.35,49.06554776]
[1749649322467,23.06554776,166.4,166.35,49.06554776]
[1749649322673,23.06554776,166.39,166.34,23.06554776]
[1749649322859,23.06554776,166.39,166.33,23.06554776]
[1749649323070,23.06554776,166.38,166.33,23.06554776]
[1749649323386,23.06554776,166.36,166.3,24.58604776]
[1749649323887,23.06554776,166.36,166.31,26.0]
[1749649324072,23.06554776,166.37,166.31,49.06554776]
[1749649324285,23.06554776,166.36,166.3,24.58604776]
[1749649324967,18.64964886,166.4,166.3,24.58604776]
[1749649324968,23.06554776,166.35,166.3,24.58604776]
[1749649325198,23.06554776,166.34,166.29,26.0]
[1749649325495,23.06554776,166.34,166.28,23.06554776]
[1749649325678,23.06554776,166.34,166.28,26.0]
[1749649325877,23.06554776,166.34,166.29,23.06554776]
[1749649326073,32.4794,166.42,166.33,23.06554776]
[1749649326286,23.06554776,166.4,166.34,23.06554776]
[1749649326772,23.06554776,166.39,166.34,23.06554776]
[1749649327098,23.06554776,166.37,166.31,23.06554776]
[1749649327392,23.06554776,166.35,166.3,26.0]
[1749649327691,23.06554776,166.35,166.3,49.06554776]
[1749649327906,23.06554776,166.34,166.28,23.06554776]
[1749649329465,23.06554776,166.33,166.27,49.06554776]
[1749649329662,23.06554776,166.32,166.27,49.06554776]
[1749649329867,23.06554776,166.33,166.28,23.06554776]
[1749649330060,23.06554776,166.34,166.28,23.06554776]
[1749649330285,0.14216157,166.37,166.27,26.0]
[1749649330489,23.06554776,166.33,166.28,23.06554776]
[1749649330793,23.06554776,166.34,166.29,23.06554776]
[1749649330970,18.64964886,166.38,166.3,23.06554776]
[1749649331176,23.06554776,166.35,166.28,0.28432314]
[1749649331388,23.06554776,166.35,166.3,23.06554776]
[1749649331570,23.06554776,166.35,166.28,0.28432314]
[1749649331771,23.06554776,166.34,166.27,26.0]
[1749649332393,23.06554776,166.34,166.29,23.06554776]
[1749649332765,23.06554776,166.35,166.29,23.06554776]
[1749649332971,23.06554776,166.34,166.29,23.06554776]
[1749649333186,23.06554776,166.35,166.29,23.06554776]
[1749649333607,23.06554776,166.31,166.26,1.5954]
[1749649333898,23.06554776,166.31,166.26,23.06554776]
[1749649334079,23.06554776,166.33,166.28,23.06554776]
[1749649334491,23.06554776,166.33,166.27,23.06554776]
[1749649334793,1.5736,166.36,166.29,23.06554776]
[1749649334794,23.06554776,166.34,166.29,23.06554776]
[1749649335002,23.06554776,166.35,166.29,23.06554776]
[1749649335295,23.06554776,166.35,166.3,23.06554776]
[1749649335809,23.06554776,166.35,166.29,23.06554776]
[1749649335972,23.06554776,166.33,166.28,23.06554776]
[1749649336174,23.06554776,166.32,166.26,49.06554776]
[1749649336369,23.06554776,166.33,166.28,23.06554776]
[1749649336987,23.06554776,166.33,166.26,26.0]
[1749649336988,23.06554776,166.31,166.25,26.0]
[1749649337177,23.06554776,166.31,166.24,6.3444]
[1749649337178,23.06554776,166.28,166.22,24.59364776]
[1749649337391,23.06554776,166.27,166.22,1.5281]
[1749649337583,23.06554776,166.27,166.22,24.59364776]
[1749649337901,23.06554776,166.26,166.2,6.1059]
[1749649338086,23.06554776,166.25,166.2,23.06554776]
[1749649338485,18.79181043,166.3,166.2,23.06554776]
[1749649338689,23.06554776,166.3,166.24,23.06554776]
[1749649339188,23.06554776,166.31,166.26,23.06554776]
[1749649339385,23.06554776,166.27,166.18,1.623]
[1749649339586,23.06554776,166.22,166.18,1.623]
[1749649339783,23.06554776,166.22,166.2,26.0]
[1749649340191,23.06554776,166.21,166.2,26.0]
[1749649340393,23.06554776,166.21,166.19,26.0]
[1749649340589,23.06554776,166.21,166.18,1.623]
[1749649340790,23.06554776,166.22,166.18,24.68854776]
[1749649341177,23.06554776,166.21,166.16,29.17144776]
[1749649341402,23.06554776,166.18,166.14,14.21097216]
[1749649341584,23.06554776,166.17,166.14,14.21097216]